[Event "Hungarian Championship Women 2022"]
[Site "Budapest"]
[Date "2022.12.06"]
[Round "2.1"]
[White "Terbe, Zsuzsanna"]
[Black "Terbe, Julianna"]
[Result "1/2-1/2"]
[ECO "D10"]
[WhiteElo "2114"]
[BlackElo "2282"]
[Annotator "TA"]
[PlyCount "68"]
[EventDate "2022.12.03"]
[EventType "tourn"]
[EventCountry "HUN"]
[SourceTitle "playchess.com"]
[Source "ChessBase"]
[SourceQuality "1"]
[TimeControl "40/5400+30:1800+30"]

{[%evp 29,68,0,2,0,0,0,0,0,0,0,0,0,0,0,0,0,0,0,0,0,0,0,0,0,0,0,0,0,0,0,0,0,0,0,0,0,0,0,0,0,0]} 1. d4 {[%emt 0:00:31]} d5 {[%emt 0:00:43]} 2. c4 {[%emt 0:00:07]} c6 {[%emt 0:00:04]} 3. cxd5 {[%emt 0:00:03]} cxd5 {[%emt 0:00:04]} 4. Nc3 {[%emt 0:00:07]} Nf6 {[%emt 0:00:02]} 5. Bf4 {[%emt 0:00:12]} Nc6 {[%emt 0:02:04]} 6. e3 {[%emt 0:00:12]} Bf5 {[%emt 0:00:23]} 7. Nf3 {[%emt 0:00:06]} e6 {[%emt 0:00:07]} 8. Bd3 {[%emt 0:00:03]} Bxd3 {[%emt 0:00:06]} 9. Qxd3 {[%emt 0:00:04]} Bd6 {[%emt 0:00:08]} 10. Bxd6 {[%emt 0:00:07]} Qxd6 {[%emt 0:02:25]} 11. O-O {[%emt 0:03:01]} O-O {[%emt 0:00:06]} 12. a3 {[%emt 0:00:04]} a6 {[%emt 0:00:14]} 13. Rac1 {[%emt 0:00:11]} Rfc8 {[%emt 0:00:11]} 14. Rc2 {[%emt 0:00:05]} Rc7 {[%emt 0:00:21]} 15. Rfc1 {[%emt 0:00:04]} Rac8 {[%emt 0:00:23] The position is equal.} 16. Ne2 {[%emt 0:00:24] D14: Slav Defence: Exchange variation with ...Bf5.} Ne7 {[%emt 0:00:57]} 17. Rxc7 {[%emt 0:00:15]} Rxc7 {[%emt 0:00:04]} 18. Rxc7 {[%emt 0:00:05]} Qxc7 {[%emt 0:00:02]} 19. Qc3 {[%emt 0:00:07]} Qxc3 {[%emt 0:00:17]} 20. Nxc3 $11 {[%emt 0:00:03][%mdl 4096] Endgame KNN-KNN} Nc6 {[%emt 0:00:13]} 21. Kf1 {[%emt 0:00:19]} Kf8 {[%emt 0:00:02]} 22. Ke2 {[%emt 0:00:05]} Ke7 {[%emt 0:00:02]} 23. Kd3 {[%emt 0:00:07]} Kd6 {[%emt 0:00:06]} 24. Nd2 {[%emt 0:01:06]} Nd7 {[%emt 0:00:28] [#]} 25. f4 $146 {[%emt 0:00:47]} ({Predecessor:} 25. f3 f6 26. h4 h5 27. g3 g6 28. b4 b5 {½-½ (32) Hernandez Leon,A (2280)-Hernandez Leon,S (2157) Tenerife 2019}) 25... f5 {[%emt 0:00:05]} 26. Nf3 {[%emt 0:00:06]} h6 {[%emt 0:00:35]} 27. Ne5 {[%emt 0:00:23]} Nf6 {[%emt 0:00:24]} 28. Nxc6 {[%emt 0:00:38]} Kxc6 {[%emt 0:00:03] KN-KN} 29. h3 {[%emt 0:01:17]} Ne4 {[%emt 0:00:10]} 30. Nxe4 {[%emt 0:00:13]} dxe4+ {[%emt 0:00:18]} 31. Kc4 {[%emt 0:00:14]} b5+ {[%emt 0:00:12]} 32. Kc3 {[%emt 0:00:10]} Kb6 {[%emt 0:01:19]} 33. b4 {[%emt 0:00:07]} Kc6 {[%emt 0:00:06]} 34. h4 {[%emt 0:00:14]} h5 {[%emt 0:00:04] A rather calm draw.   Weighted Error Value: White=0.00 (flawless) /Black=0.00 (flawless)} 1/2-1/2

[Event "Hungarian Championship Women 2022"]
[Site "Budapest"]
[Date "2022.12.06"]
[Round "2.2"]
[White "Ivan-Gal, Hanna Krisztina"]
[Black "Erdos, Boglarka"]
[Result "1-0"]
[ECO "C84"]
[WhiteElo "2164"]
[BlackElo "2180"]
[Annotator "TA"]
[PlyCount "105"]
[EventDate "2022.12.03"]
[EventType "tourn"]
[EventCountry "HUN"]
[SourceTitle "playchess.com"]
[Source "ChessBase"]
[SourceQuality "1"]
[TimeControl "40/5400+30:1800+30"]

{[%evp 13,105,18,23,1,6,3,4,8,24,29,27,32,37,11,21,12,20,-8,45,0,0,0,0,2,2,1,0,0,0,0,8,0,16,9,1,10,21,0,2,8,121,111,121,67,86,86,187,162,181,177,277,196,170,63,60,41,152,157,190,203,321,301,485,480,618,599,516,591,586,578,578,557,554,570,547,531,527,391,555,452,869,828,1822,1422,5226,3613,29976,29977,29976,29978,29977,29975,6390,5401]} 1. e4 {[%emt 0:00:32]} e5 {[%emt 0:00:34]} 2. Nf3 {[%emt 0:00:08]} Nc6 {[%emt 0:00:06]} 3. Bb5 {[%emt 0:00:07][%cal Bf1b5,Bb5a4,Ba4b3,Bb3a2,Ba2d5][%mdl 32]} a6 {[%emt 0:00:11]} 4. Ba4 {[%emt 0:00:05]} Nf6 {[%emt 0:00:13]} 5. O-O {[%emt 0:00:16]} Be7 {[%emt 0:00:18]} 6. d3 {[%emt 0:00:15]} b5 {[%emt 0:00:59]} 7. Bb3 {[%emt 0:00:07]} d6 {[%emt 0:03:48]} 8. a3 {[%emt 0:00:48] C84: Closed Ruy Lopez: Unusual White 6th moves.} Na5 {[%emt 0:03:31]} 9. Ba2 {[%emt 0:00:11]} c5 {[%emt 0:00:07]} 10. Nc3 {[%emt 0:01:26] The position is equal.} O-O {[%emt 0:05:40]} 11. b4 {[%emt 0:03:16]} Nc6 {[%emt 0:12:34] 11...Nc6 is better than 11...cxb4.} 12. Nd5 {[%emt 0:00:58]} a5 {[%emt 0:12:38][%cal Ra5b4]} 13. Nxf6+ {[%emt 0:11:09]} Bxf6 {[%emt 0:00:25]} 14. Bd5 {[%emt 0:00:06] [#]} Qb6 $146 {[%emt 0:11:34]} ({Predecessor:} 14... Bd7 15. bxc5 dxc5 16. Be3 Qb6 17. a4 b4 18. Nd2 Rac8 19. Nc4 Qa7 20. Qh5 Be6 21. Bxe6 fxe6 {1-0 (49) Munguntuul,B (2428)-Dauletova,G (2285) Tornelo INT 2021}) 15. Rb1 {[%emt 0:11:33]} Bb7 {[%emt 0:14:57]} (15... axb4 $11 16. axb4 cxb4) 16. Bd2 {[%emt 0:18:48]} axb4 {[%emt 0:04:54]} 17. axb4 {[%emt 0:00:07]} Nxb4 {[%emt 0:07:01]} 18. Bxb7 {[%emt 0:01:30]} Qxb7 {[%emt 0:00:06]} 19. Bxb4 {[%emt 0:00:47]} cxb4 {[%emt 0:00:13]} 20. Rxb4 {[%emt 0:00:49]} Qc6 {[%emt 0:09:30]} 21. Qb1 {[%emt 0:00:58]} Ra5 {[%emt 0:02:46]} 22. h3 {[%emt 0:04:21]} Rc8 {[%emt 0:01:55]} 23. c4 {[%emt 0:04:00]} bxc4 {[%emt 0:00:07]} 24. Rxc4 {[%emt 0:00:09]} Rc5 {[%emt 0:00:39]} 25. Nd2 {[%emt 0:03:48]} Rxc4 {[%emt 0:03:00]} 26. Nxc4 {[%emt 0:00:14]} d5 {[%emt 0:01:50]} (26... h5 $11 {keeps the balance.}) 27. exd5 $16 {[%emt 0:00:56]} Qc5 {[%emt 0:01:52]} (27... Qxd5 $2 28. Nb6 Qd8 29. Nxc8 $18) 28. Re1 {[%emt 0:06:55]} ({White should try} 28. Qe1 $16) 28... Rd8 {[%emt 0:02:15]} (28... Qxd5 $2 29. Nb6 Qc5 30. Nxc8 Qxc8 31. Rc1 $18) 29. d6 {[%emt 0:02:24]} Bh4 {[%emt 0:00:10]} (29... Qd5 $16) 30. Qa2 {[%emt 0:03:46]} (30. Rxe5 Qxf2+ 31. Kh1 Bg3 $11) 30... Qd5 {[%emt 0:00:56]} 31. Qe2 {[%emt 0:04:48]} g6 {[%emt 0:00:32]} (31... Bf6 $142 32. Rb1 (32. Nxe5 Qxd6 33. d4 h6 $14) 32... g6) 32. Qe4 {[%emt 0:06:30]} (32. Nxe5 Rxd6 33. Qe4 Bf6 $14) 32... Qxe4 {[%emt 0:00:05]} 33. Rxe4 $18 {[%emt 0:00:10][%mdl 4096] Endgame KRB-KRN} (33. dxe4 $18 {Hoping for Rd1.} f6 34. Rd1) 33... Bf6 $14 {[%emt 0:00:13]} 34. Re1 {[%emt 0:01:59]} Kf8 {[%emt 0:00:58] Black is now going downhill.} (34... Bg7 $1 $14) 35. Kf1 $16 {[%emt 0:01:11] White is more active.} ({Much less strong is} 35. Nxe5 $6 Rxd6 36. Ng4 Bg7 $14) 35... Rd7 {[%emt 0:00:35]} 36. Ke2 {[%emt 0:01:47]} ({Resist} 36. Nxe5 $6 Rxd6 37. Ng4 Bc3 $14) 36... Bd8 {[%emt 0:00:17]} (36... Rb7 $142 37. Kd2 Bg7) 37. Kf3 $18 {[%emt 0:00:38]} ({Less strong is} 37. Nxe5 Rxd6 38. Nc4 Re6+ 39. Kf1 Ra6 $16) 37... f6 $2 {[%emt 0:00:19]} (37... Rb7 {was worth a try.} 38. Nxe5 f6) 38. Ke4 {[%emt 0:00:26]} Kf7 {[%emt 0:00:15]} 39. Kd5 {[%emt 0:00:28]} Rb7 {[%emt 0:00:47]} 40. Ra1 {[%emt 0:00:00]} Rb5+ {[%emt 0:00:00]} 41. Kc6 {[%emt 0:01:54]} Rb8 {[%emt 0:01:39]} 42. Ra7+ {[%emt 0:00:36]} Ke6 {[%emt 0:00:12]} 43. Rxh7 {[%emt 0:03:35]} Rc8+ {[%emt 0:04:11] [#]} 44. Rc7 $1 {[%emt 0:03:15]} Ra8 {[%emt 0:05:30]} 45. g3 {[%emt 0:08:09]} f5 {[%emt 0:09:12]} (45... Bxc7 $2 46. dxc7 Rc8 47. Nb6 $18) (45... e4 $142 46. dxe4 Ra6+ 47. Kb7 Ra4) 46. Rg7 {[%emt 0:05:05]} Kf6 {[%emt 0:02:52]} (46... Rc8+ $142 47. Rc7 Ra8) 47. Rg8 {[%emt 0:01:09] And now Kb7 would win.} e4 {[%emt 0:01:28]} 48. dxe4 {[%emt 0:02:30]} Rc8+ {[%emt 0:02:23]} 49. Kd5 {[%emt 0:02:04] [#] White wants to mate with Ne5.} fxe4 {[%emt 0:01:12]} 50. Nb6 {[%emt 0:05:31]} Kf7 {[%emt 0:02:21]} 51. Nxc8 {[%emt 0:00:26]} Kxg8 {[%emt 0:00:05]} 52. Kxe4 {[%emt 0:00:46]} Kf7 {[%emt 0:00:58]} 53. Ke5 {[%emt 0:00:33] Weighted Error Value: White=0.25 (precise) /Black=0.54} 1-0

[Event "Hungarian Championship Women 2022"]
[Site "Budapest"]
[Date "2022.12.06"]
[Round "2.3"]
[White "Dudas, Eszter"]
[Black "Szente Varga, Fruzsina"]
[Result "0-1"]
[ECO "B04"]
[WhiteElo "2135"]
[BlackElo "2075"]
[Annotator "TA"]
[PlyCount "128"]
[EventDate "2022.12.03"]
[EventType "tourn"]
[EventCountry "HUN"]
[SourceTitle "playchess.com"]
[Source "ChessBase"]
[SourceQuality "1"]
[TimeControl "40/5400+30:1800+30"]

{[%evp 10,128,44,0,0,0,0,0,0,-25,-25,-38,0,-15,0,0,-4,-25,-26,-29,-6,-12,-6,-14,25,0,0,0,0,0,0,0,7,3,4,-34,-25,-40,-39,-56,-61,-69,-52,-58,-53,-54,-54,-51,-52,-52,-46,-74,-75,-83,-66,-140,-146,-147,-135,-137,-119,-160,-152,-168,-154,-182,-176,-196,-179,-213,-207,-235,-184,-228,-188,-220,-195,-204,-198,-234,-155,-157,-160,-160,-151,-157,-151,-165,-162,-178,-215,-211,-208,-247,-195,-291,-307,-282,-304,-296,-291,-497,-476,-481,-476,-476,-476,-469,-462,-843,-842,-808,-620,-613,-596,-836,-829,-29988,-29989,-29989,-29990]} 1. e4 {[%emt 0:03:31]} Nf6 {[%emt 0:00:36][%cal Bg8f6,Bf6d5,Bd5b4][%mdl 32]} 2. e5 {[%emt 0:00:11]} Nd5 {[%emt 0:00:03]} 3. d4 {[%emt 0:00:06]} d6 {[%emt 0:00:04]} 4. Nf3 {[%emt 0:00:35]} dxe5 {[%emt 0:01:52]} 5. Nxe5 {[%emt 0:03:56]} c6 {[%emt 0:00:26]} 6. c4 {[%emt 0:04:07]} Nb4 {[%emt 0:00:17][%cal Od8d4] B04: Alekhine's Defence: 4 Nf3.} 7. Be3 {[%emt 0:04:15]} Bf5 $1 {[%emt 0:00:16] And now ...Nc2+ would win.} 8. Na3 {[%emt 0:07:02][%cal Oe5f7] Prevents Nc2+.} Nd7 {[%emt 0:00:40] The position is equal.} 9. Nf3 {[%emt 0:08:18]} e5 {[%emt 0:00:27]} 10. Be2 $1 {[%emt 0:10:42]} e4 {[%emt 0:03:17]} 11. Nd2 {[%emt 0:01:46] [#]} ({But not} 11. Ne5 Nxe5 12. dxe5 Nd3+ 13. Bxd3 Bb4+ 14. Bd2 Bxd2+ 15. Qxd2 exd3 $17) 11... Bd6 $146 {[%emt 0:05:31]} ({Predecessor:} 11... Nd3+ 12. Bxd3 exd3 13. O-O Bxa3 14. bxa3 O-O 15. Qf3 Bg6 16. Rab1 Nb6 17. c5 Nd5 18. Rxb7 {1-0 (52) Martinez Alcantara,J (2615)-Bortnyk,O (2604) Chess.com INT 2022}) 12. O-O {[%emt 0:05:34]} O-O {[%emt 0:00:29]} 13. Nc2 {[%emt 0:03:56]} (13. Nab1 {looks sharper.} Qh4 14. g3 Qh3 15. Re1) 13... Nxc2 {[%emt 0:03:50]} ({Don't play} 13... Qh4 14. g3 Qd8 15. c5 Nxc2 16. Qxc2 $16) 14. Qxc2 {[%emt 0:00:08]} Qh4 {[%emt 0:00:54][%csl Gd6][%cal Rh4h2]} 15. g3 {[%emt 0:04:20]} Qe7 {[%emt 0:00:18]} 16. Rfe1 {[%emt 0:02:16]} Bg6 {[%emt 0:04:41]} 17. Qb3 {[%emt 0:01:11]} b6 {[%emt 0:00:53] Inhibits c5.} 18. f3 {[%emt 0:03:00]} c5 {[%emt 0:04:37]} 19. Nxe4 {[%emt 0:06:30]} Bxe4 {[%emt 0:01:22]} 20. fxe4 {[%emt 0:00:13]} cxd4 {[%emt 0:06:55]} 21. Bxd4 {[%emt 0:00:12]} Qxe4 {[%emt 0:01:33]} 22. Qc3 {[%emt 0:05:09] [#]} (22. Qe3 {simplifies} Qxe3+ 23. Bxe3 Rad8 24. Rad1) 22... Bb4 $1 {[%emt 0:10:14]} 23. Qxb4 {[%emt 0:07:12]} Qxd4+ {[%emt 0:00:11]} 24. Kg2 {[%emt 0:00:21]} Rae8 {[%emt 0:06:06] Threatens to win with ...Re3.} 25. Qc3 {[%emt 0:10:25] Prevents Re3.} Qxc3 {[%emt 0:00:57] Black is much more active.} 26. bxc3 {[%emt 0:00:04]} Re3 {[%emt 0:00:25]} 27. Bg4 {[%emt 0:00:46][%csl LRd7,LRe3]} Rxe1 {[%emt 0:00:55]} 28. Rxe1 $15 {[%emt 0:00:02][%mdl 4096] Endgame KRB-KRN} Nf6 {[%emt 0:00:34]} 29. Bf3 {[%emt 0:00:24]} Rd8 {[%emt 0:02:02]} 30. Re2 {[%emt 0:01:53] Inhibits Rd2.} Kf8 {[%emt 0:00:13]} 31. Kf2 {[%emt 0:01:51]} Rc8 {[%emt 0:01:49]} 32. Ke1 {[%emt 0:02:30]} (32. Ke3 $1 $15) 32... Rxc4 $17 {[%emt 0:01:45]} 33. Kd2 {[%emt 0:00:02]} Nd7 {[%emt 0:02:25]} 34. Kd3 {[%emt 0:02:11]} Rc5 {[%emt 0:00:06]} 35. Kc2 {[%emt 0:00:35]} Ne5 {[%emt 0:00:17]} 36. Be4 {[%emt 0:00:10]} g6 {[%emt 0:01:15]} 37. h4 {[%emt 0:02:18]} f5 {[%emt 0:00:11]} 38. Bg2 {[%emt 0:00:27]} Kf7 {[%emt 0:00:29]} 39. Kb3 {[%emt 0:00:56]} h6 {[%emt 0:01:21]} 40. Rd2 {[%emt 0:00:00]} Ke7 {[%emt 0:00:00]} 41. Re2 {[%emt 0:08:21]} Ke6 {[%emt 0:11:42]} 42. Bb7 {[%emt 0:13:54]} g5 {[%emt 0:00:45]} 43. hxg5 {[%emt 0:00:04]} hxg5 {[%emt 0:00:04]} 44. Rh2 {[%emt 0:00:51]} f4 {[%emt 0:03:08]} 45. gxf4 {[%emt 0:00:45]} gxf4 {[%emt 0:00:15]} 46. Be4 {[%emt 0:01:46]} Ng4 {[%emt 0:07:26] Inhibits Rh6+.} 47. Rh4 {[%emt 0:03:17]} Ke5 {[%emt 0:00:16]} 48. Bf3 {[%emt 0:00:11] [#]} Nf6 {[%emt 0:00:48] Prevents Rh5+.} 49. Rh1 {[%emt 0:00:34]} Kf5 {[%emt 0:00:22]} 50. Re1 {[%emt 0:00:32]} Nd5 {[%emt 0:04:33] Inhibits Re7.} 51. Be4+ {[%emt 0:01:18]} Kf6 {[%emt 0:00:55]} 52. c4 {[%emt 0:01:52]} (52. Rc1 {was called for.}) 52... Ne3 $19 {[%emt 0:00:04]} 53. Bd3 {[%emt 0:00:07]} Ke5 {[%emt 0:00:42]} 54. Kc3 {[%emt 0:00:04]} Ra5 {[%emt 0:00:16]} 55. Kb3 {[%emt 0:00:48] Prevents Ra3+.} (55. Bb1) 55... Kd4 {[%emt 0:00:18]} 56. Be2 {[%emt 0:00:07]} Ke4 {[%emt 0:05:13]} 57. Rh1 {[%emt 0:00:06]} Nf5 {[%emt 0:00:08] Prevents Rh6. aiming for ...Nd4+.} 58. Bg4 {[%emt 0:03:54]} f3 {[%emt 0:01:48][%cal Bf4f3,Bf3f2][%mdl 32] Hoping for ...f2.} ({Don't blunder} 58... Nd4+ $2 59. Kb2 $19) 59. Rh8 {[%emt 0:01:05]} (59. Rh2 $142) 59... f2 {[%emt 0:00:55]} 60. Bh3 {[%emt 0:00:12]} Re5 {[%emt 0:03:28]} 61. Rf8 {[%emt 0:00:55] [#]} Ke3 $1 {[%emt 0:07:12][%cal Oe3d2] White must now prevent ...Kd2!} 62. Rf7 {[%emt 0:00:14] [#]} (62. Kb2 Nd6) 62... Kd2 $1 {[%emt 0:04:43] ...Re3+ is the strong threat.} 63. Rxa7 {[%emt 0:00:45]} (63. Kb4 Ke1) 63... Re3+ {[%emt 0:00:15]} 64. Kb4 {[%emt 0:00:23]} Rxh3 {[%emt 0:00:05] Weighted Error Value: White=0.40/Black=0.10 (very precise)} 0-1

[Event "Hungarian Championship Women 2022"]
[Site "Budapest"]
[Date "2022.12.06"]
[Round "2.4"]
[White "Havanecz, Bianka"]
[Black "Mihok-Juhasz, Barbara"]
[Result "1/2-1/2"]
[ECO "E73"]
[WhiteElo "2210"]
[BlackElo "2206"]
[Annotator "TA"]
[PlyCount "80"]
[EventDate "2022.12.03"]
[EventType "tourn"]
[EventCountry "HUN"]
[SourceTitle "playchess.com"]
[Source "ChessBase"]
[SourceQuality "1"]
[TimeControl "40/5400+30:1800+30"]

{[%evp 20,80,32,29,56,0,0,15,0,9,20,33,56,-18,0,0,0,-39,-9,-19,0,0,12,0,0,0,0,0,0,0,0,0,54,58,52,79,142,144,111,160,154,84,173,16,19,26,20,0,0,0,0,0,13,17,55,55,55,55,58,0,51,54,52]} 1. d4 {[%emt 0:00:31]} Nf6 {[%emt 0:01:49]} 2. c4 {[%emt 0:00:07]} g6 {[%emt 0:00:17]} 3. Nc3 {[%emt 0:00:06]} Bg7 {[%emt 0:00:09]} 4. e4 {[%emt 0:00:07]} d6 {[%emt 0:00:10]} 5. Be2 {[%emt 0:00:14]} O-O {[%emt 0:00:34]} 6. Bg5 {[%emt 0:00:07]} c5 {[%emt 0:00:13]} 7. d5 {[%emt 0:00:58]} h6 {[%emt 0:00:17]} 8. Bh4 {[%emt 0:05:53]} e6 {[%emt 0:19:27]} 9. Nf3 {[%emt 0:05:24]} exd5 {[%emt 0:02:43]} 10. exd5 {[%emt 0:06:25]} Bg4 {[%emt 0:21:30]} 11. O-O {[%emt 0:01:44]} Re8 {[%emt 0:03:44] [#] E91: King's Indian: Classical: 6 Be2, unusual replies including 6...c5 and 6...Bg4.} 12. Nd2 $146 {[%emt 0:09:49]} ({Predecessor:} 12. h3 Bxf3 13. Bxf3 a6 14. Qd2 Nbd7 15. Rae1 Qb6 16. Bg3 Rxe1 17. Rxe1 Re8 18. Rf1 Kh7 19. Bf4 Ng8 20. Be2 Ne7 21. g4 {½-½ (21) Amura,C (2344)-Zuriel,M (2184) San Luis 2007}) 12... Bxe2 {[%emt 0:02:48]} 13. Nxe2 {[%emt 0:00:05]} Nbd7 {[%emt 0:03:43] The position is equal.} 14. Nc3 {[%emt 0:00:31]} Ne5 {[%emt 0:01:08]} 15. h3 {[%emt 0:03:00]} Qd7 {[%emt 0:14:40]} 16. Qc2 {[%emt 0:04:56]} (16. Bxf6 $14 Bxf6 17. Qc2) 16... g5 {[%emt 0:00:27]} (16... Nh5 {is more complex.} 17. Rae1 Nf4 18. Re3 f5) 17. Bg3 {[%emt 0:00:15]} Nh5 {[%emt 0:00:30]} 18. Rfe1 {[%emt 0:10:45]} f5 {[%emt 0:04:24]} 19. Bxe5 {[%emt 0:02:52]} Bxe5 {[%emt 0:01:51]} 20. Nf3 {[%emt 0:04:43]} Bg7 {[%emt 0:01:09]} 21. Rad1 {[%emt 0:17:07]} (21. g3 {feels hotter.} Bf6 22. Rab1 Kf7 23. a3) 21... Nf4 {[%emt 0:01:09]} 22. Ne2 {[%emt 0:02:12]} Nxe2+ {[%emt 0:05:10]} 23. Rxe2 {[%emt 0:00:06]} Rxe2 {[%emt 0:00:03]} 24. Qxe2 {[%emt 0:00:06]} Re8 {[%emt 0:00:02]} 25. Qc2 {[%emt 0:03:44]} g4 {[%emt 0:05:15]} (25... Bf6 $11) 26. Nh4 $14 {[%emt 0:03:20]} gxh3 {[%emt 0:03:42]} 27. Qxf5 {[%emt 0:03:33]} Qe7 {[%emt 0:03:31]} ({Black should play} 27... Qxf5 28. Nxf5 Re2) 28. Qxh3 $16 {[%emt 0:02:28]} Qe2 {[%emt 0:00:06] [#]} 29. Rf1 {[%emt 0:07:29]} Qxc4 {[%emt 0:00:38]} 30. Nf5 {[%emt 0:02:31]} ({White should try} 30. Qd7 Re5 31. Ng6) 30... Qxd5 {[%emt 0:02:26]} (30... Qf4 $16 {is a better defense.}) 31. Qh5 $2 {[%emt 0:02:40]} ({Worse is} 31. Nxh6+ Bxh6 32. Qxh6 Re7 $11) (31. Qg4 $18 {[%csl Gf5][%cal Rg4g7]} Qe5 32. Qg6) 31... Qe6 $1 $11 {[%emt 0:00:45] [#]} (31... Re5 $2 {[#]} 32. Ne7+ $1 {[%mdl 512]} (32. Nxh6+ Kf8 $15) 32... Kf8 33. Ng6+ (33. Nxd5 Rxh5 34. Nf4 Rf5 $17) 33... Kg8 34. Nxe5 Qxe5 35. Qg4 $18) 32. Nxd6 $1 {[%emt 0:00:24][%mdl 64]} Rd8 {[%emt 0:01:02]} 33. Nxb7 $40 {[%emt 0:00:26][%mdl 128] Black needs to defend precisely.} Rd5 {[%emt 0:00:23]} 34. Qf3 {[%emt 0:00:55]} (34. Nxc5 $2 Qc6 35. Qe2 Rxc5 $17) 34... Bxb2 {[%emt 0:01:08]} 35. Na5 {[%emt 0:00:50]} Bd4 {[%emt 0:00:26]} 36. Nb3 {[%emt 0:00:34]} Rd7 {[%emt 0:00:33]} 37. Nxd4 {[%emt 0:00:52]} cxd4 {[%emt 0:00:16]} 38. Rd1 {[%emt 0:00:08] Against d3} Kg7 {[%emt 0:00:46]} 39. a3 {[%emt 0:00:44]} (39. Qg3+ $1 $14 Kh7 40. Qd3+ Kg7 41. a4) 39... Kh7 {[%emt 0:00:29]} (39... d3 $1 $11 40. Rxd3 Qe1+ 41. Kh2 Rxd3 42. Qxd3 Qxf2) 40. Qd3+ {[%emt 0:00:00]} Kg7 {[%emt 0:00:00] Weighted Error Value: White=0.19 (very precise) /Black=0.19 (very precise)} 1/2-1/2

[Event "Hungarian Championship Women 2022"]
[Site "Budapest"]
[Date "2022.12.06"]
[Round "2.5"]
[White "Demeter, Dorina"]
[Black "Karacsonyi, Kata"]
[Result "1-0"]
[ECO "A35"]
[WhiteElo "2149"]
[BlackElo "2109"]
[Annotator "TA"]
[PlyCount "69"]
[EventDate "2022.12.03"]
[EventType "tourn"]
[EventCountry "HUN"]
[SourceTitle "playchess.com"]
[Source "ChessBase"]
[SourceQuality "1"]
[TimeControl "40/5400+30:1800+30"]

{[%evp 9,69,92,96,56,70,65,87,78,114,119,122,94,82,75,80,79,157,145,142,118,131,128,184,183,197,175,377,244,406,406,388,370,354,288,451,383,358,367,394,451,447,454,830,818,775,505,1034,1034,858,828,1023,993,1400,1318,1193,810,1157,401,6270,5510,29991,29992]} 1. c4 {[%emt 0:00:55]} c5 {[%emt 0:00:56]} 2. Nc3 {[%emt 0:02:24]} Nc6 {[%emt 0:00:10]} 3. Nf3 {[%emt 0:00:26]} g6 {[%emt 0:09:17]} 4. e3 {[%emt 0:00:18][%cal Be2e3,Be3d4,Bd4d5][%mdl 32]} e5 {[%emt 0:02:13]} 5. d4 {[%emt 0:04:01]} d6 {[%emt 0:08:51]} 6. Be2 {[%emt 0:14:57] A35: Symmetrical English: 2 Nc3 Nc6 3 Nf3.} exd4 {[%emt 0:14:51]} 7. exd4 {[%emt 0:00:05] [#]} Bg4 $146 {[%emt 0:03:38]} ({Predecessor:} 7... Bg7 8. Be3 b6 9. O-O Nge7 10. Qd2 Bg4 11. d5 Bxf3 12. Bxf3 Nd4 13. Bxd4 Bxd4 {0-1 (61) Zhu,J (2484)-Sernecki,F (2309) Chess.com INT 2022}) 8. Be3 {[%emt 0:05:36] White is better.} Nf6 {[%emt 0:10:18]} 9. O-O {[%emt 0:07:36]} Be7 {[%emt 0:03:03]} 10. d5 {[%emt 0:11:07]} Bxf3 {[%emt 0:02:09]} 11. Bxf3 {[%emt 0:01:02]} Ne5 {[%emt 0:00:20]} 12. Be2 {[%emt 0:06:46]} Qd7 {[%emt 0:06:42]} (12... O-O $142) 13. h3 $16 {[%emt 0:01:33] [#] Hoping for f4.} Qd8 {[%emt 0:05:07]} 14. Bh6 {[%emt 0:04:14]} Bf8 {[%emt 0:05:30]} 15. Qd2 {[%emt 0:03:29]} Ng8 {[%emt 0:11:48]} (15... Bxh6 $16 {keeps fighting.} 16. Qxh6 Qe7) 16. Bg5 $18 {[%emt 0:06:41]} Be7 {[%emt 0:01:05]} 17. Bxe7 {[%emt 0:04:57]} Qxe7 {[%emt 0:05:16]} (17... Nxe7 18. Ne4 O-O) 18. Rae1 {[%emt 0:01:59] f4 is the strong threat.} Kf8 $2 {[%emt 0:00:30]} (18... g5 {was necessary.} 19. Ne4 O-O-O 20. Qxg5 (20. Nxg5 h6 $18) 20... Qxg5 21. Nxg5 Rf8) 19. f4 {[%emt 0:01:37][%cal Bf2f4,Bf4f5][%mdl 32]} Nd7 {[%emt 0:00:05]} 20. Bg4 {[%emt 0:02:03]} Qd8 {[%emt 0:00:10]} 21. f5 {[%emt 0:01:13]} Kg7 {[%emt 0:02:53]} (21... Ndf6 $142 22. Bd1 a6) 22. Ne4 {[%emt 0:02:27] aiming for fxg6.} Ne5 {[%emt 0:02:40]} 23. Qc3 {[%emt 0:04:41]} f6 {[%emt 0:01:26]} 24. fxg6 {[%emt 0:02:32]} hxg6 {[%emt 0:01:53]} 25. Be6 {[%emt 0:00:02]} f5 {[%emt 0:01:02] [#]} (25... b6 $142 26. Qg3 Nh6 27. Rxf6 Rf8) 26. Nxd6 $1 {[%emt 0:04:14][%mdl 512]} Qxd6 {[%emt 0:00:05]} 27. Bxg8 {[%emt 0:01:00]} ({Less strong is} 27. Qxe5+ Qxe5 28. Rxe5 Nf6 $16) 27... Rhxg8 {[%emt 0:01:24]} (27... Re8 $142 28. Be6 Kf6) 28. Rxe5 {[%emt 0:00:04] Threatening mate with Re6+.} ({Not} 28. Qxe5+ Qxe5 29. Rxe5 Rge8 $18) 28... Kh7 {[%emt 0:00:22]} 29. Re6 {[%emt 0:01:37]} Qd7 {[%emt 0:00:40]} 30. Qf6 {[%emt 0:01:04]} Rg7 {[%emt 0:00:28]} 31. Rfe1 {[%emt 0:00:33] Strongly threatening Re7.} Qf7 {[%emt 0:00:36]} 32. Qh4+ {[%emt 0:03:14]} Kg8 {[%emt 0:00:00]} 33. Re7 {[%emt 0:00:36]} (33. Rf6 $142) 33... Qf8 {[%emt 0:00:55]} (33... g5 $142) 34. d6 {[%emt 0:00:43]} Rd8 {[%emt 0:00:23]} 35. Rxg7+ {[%emt 0:00:11] Weighted Error Value: White=0.54/Black=0.73} 1-0